fUSD/lending_fUSD_20241125
["ID","MTS","AMOUNT","RATE_DAILY","PERIOD"]
[343266672,1732536674895,-500.0,0.00040547,21]
[343266673,1732536674905,-3431.21,0.00040547,21]
[343266674,1732536674915,-151.0,0.00040547,14]
[343266675,1732536674925,-500.0,0.00040547,21]
[343266676,1732536674935,-535.48,0.00040547,21]
[343266677,1732536674944,-2326.47,0.00040547,21]
[343266678,1732536674954,-817.33,0.00040547,21]
[343266679,1732536674964,-8053.63,0.00040547,21]
[343266680,1732536674974,-939.05,0.00040547,21]
[343266681,1732536674984,-576.02,0.00040547,21]
[343266682,1732536674993,-8604.27,0.00040547,21]
[343266683,1732536675003,-659.22,0.00040547,21]
[343266684,1732536675013,-500.0,0.00040547,21]
[343266685,1732536675022,-674.77,0.00040547,2]
[343266686,1732536675031,-500.0,0.00040547,21]
[343266687,1732536675041,-500.0,0.00040547,21]
[343266688,1732536675050,-897.77,0.00040547,21]
[343266689,1732536675059,-500.0,0.00040547,21]
[343266690,1732536675070,-500.0,0.00040547,21]
[343266691,1732536675079,-5549.98,0.00040547,21]
[343266692,1732536675089,-500.0,0.00040547,21]
[343266693,1732536675100,-539.10947405,0.00040547,21]
[343266694,1732536675115,-500.0,0.00040547,21]
[343266695,1732536675124,-206.74,0.00040547,21]
[343266696,1732536675134,-747.44,0.00040547,21]
[343266697,1732536675144,-1247.78,0.00040547,21]
[343266698,1732536675154,-209.16,0.00040547,21]
[343266699,1732536675163,-726.59,0.00040547,21]
[343266700,1732536675173,-1129.77,0.00040547,21]
[343266701,1732536675182,-963.68,0.00040547,21]
[343266702,1732536675192,-500.0,0.00040547,21]
[343266703,1732536675201,-3123.05,0.00040547,21]
[343266704,1732536675211,-500.0,0.00040547,21]
[343266705,1732536675220,-500.0,0.00040547,21]
[343266706,1732536675230,-500.0,0.00040547,21]
[343266707,1732536675239,-500.0,0.00040547,21]
[343266708,1732536675249,-547.96,0.00040547,21]
[343266709,1732536675259,-727.18,0.00040547,21]
[343266710,1732536675268,-685.58,0.00040547,21]
[343266711,1732536675277,-8008.7,0.00040547,21]
[343266712,1732536675286,-500.0,0.00040547,21]
[343266713,1732536675295,-500.0,0.00040547,21]
[343266714,1732536675305,-913.31,0.00040547,21]
[343266715,1732536675314,-454.68,0.00040547,21]
[343266716,1732536675323,-500.0,0.00040547,21]
[343266717,1732536675333,-1103.1,0.00040547,21]
[343266718,1732536675342,-1042.25,0.00040547,21]
[343266719,1732536675352,-500.0,0.00040547,21]
[343266720,1732536675363,-500.0,0.00040547,21]
[343266721,1732536675372,-525.44,0.00040547,21]
[343266722,1732536675382,-500.0,0.00040547,21]
[343266723,1732536675391,-714.29,0.00040547,21]
[343266724,1732536675401,-1098.83,0.00040547,21]
[343266725,1732536675410,-599.99,0.00040547,21]
[343266726,1732536675419,-500.0,0.00040547,21]
[343266727,1732536675428,-500.0,0.00040547,21]
[343266728,1732536675438,-536.64,0.00040547,21]
[343266729,1732536675448,-500.0,0.00040547,21]
[343266730,1732536675457,-3141.32,0.00040547,21]
[343266731,1732536675467,-500.0,0.00040547,21]
[343266732,1732536675476,-1749.61,0.00040547,21]
[343266733,1732536675486,-520.31,0.00040547,21]
[343266734,1732536675495,-3086.47,0.00040547,21]
[343266735,1732536675505,-999.78,0.00040547,21]
[343266736,1732536675514,-702.08,0.00040547,21]
[343266737,1732536675524,-279.08,0.00040547,21]
[343266738,1732536675533,-500.0,0.00040547,21]
[343266739,1732536675542,-516.76,0.00040547,21]
[343266740,1732536675551,-599.84,0.00040547,21]
[343266741,1732536675561,-151.0,0.00040547,14]
[343266742,1732536675571,-500.0,0.00040547,21]
[343266743,1732536675581,-500.0,0.00040547,21]
[343266744,1732536675590,-843.37,0.00040547,21]
[343266745,1732536675600,-897.11,0.00040547,21]
[343266746,1732536675611,-500.0,0.00040547,21]
[343266747,1732536675621,-1516.6,0.00040547,21]
[343266748,1732536675631,-167.174061,0.00040547,14]
[343266749,1732536675641,-151.0,0.00040547,14]
[343266750,1732536675651,-4321.07,0.00040547,21]
[343266751,1732536675661,-151.0,0.00040547,14]
[343266752,1732536675670,-284.21052599,0.00040547,21]
[343266753,1732536675680,-1501.72,0.00040547,21]
[343266754,1732536675690,-500.0,0.00040547,21]
[343266755,1732536675699,-500.0,0.00040547,21]
[343266756,1732536675709,-21441.79,0.00040547,21]
[343266757,1732536675718,-3276.7,0.00040547,21]
[343266758,1732536675729,-500.0,0.00040547,21]
[343266759,1732536675738,-2182.69,0.00040547,21]
[343266760,1732536675748,-500.0,0.00040547,21]
[343266761,1732536675757,-241.58,0.00040547,21]
[343266762,1732536675767,-500.0,0.00040547,21]
[343266763,1732536675776,-2334.22,0.00040547,21]
[343266764,1732536675786,-1941.42,0.00040547,21]
[343266765,1732536675796,-500.0,0.00040547,21]
[343266766,1732536675806,-203.445184,0.00040547,14]
[343266767,1732536675815,-1034.74,0.00040547,21]
[343266768,1732536675824,-548.14,0.00040547,21]
[343266769,1732536675834,-500.0,0.00040547,21]
[343266770,1732536675843,-285.96443232,0.00040547,21]
[343266771,1732536675853,-1055.46,0.00040547,21]
[343266772,1732536675864,-574.77,0.00040588,21]
[343266773,1732536675874,-500.0,0.00040589,21]
[343266774,1732536675883,-306.2,0.00040589,21]
[343266775,1732536675893,-500.0,0.00040589,21]
[343266776,1732536675903,-500.0,0.00040589,21]
[343266777,1732536675913,-500.0,0.00040589,21]
[343266778,1732536675924,-203.50496634,0.00040589,21]
[343266779,1732536675934,-500.0,0.00040589,21]
[343266780,1732536675943,-771.52,0.00040589,21]
[343266781,1732536675952,-500.0,0.00040589,21]
[343266782,1732536675961,-500.0,0.00040589,21]
[343266783,1732536675971,-500.0,0.00040589,21]
[343266784,1732536675980,-500.0,0.00040589,21]
[343266785,1732536675990,-500.0,0.00040589,21]
[343266786,1732536676000,-500.0,0.00040589,21]
[343266787,1732536676009,-500.0,0.00040589,21]
[343266788,1732536676019,-500.0,0.00040589,21]
[343266789,1732536676029,-500.0,0.00040589,21]
[343266790,1732536676039,-500.0,0.00040589,21]
[343266791,1732536676049,-500.0,0.00040589,21]
[343266792,1732536676058,-500.0,0.00040589,21]
[343266793,1732536676068,-658.45,0.00040589,21]
[343266794,1732536676077,-1976.25,0.00040589,21]
[343266795,1732536676087,-500.0,0.00040589,21]
[343266796,1732536676098,-500.0,0.00040589,21]
[343266797,1732536676113,-500.0,0.00040589,21]
[343266798,1732536676123,-500.0,0.00040589,21]
[343266799,1732536676134,-500.0,0.00040589,21]
[343266800,1732536676145,-876.13,0.00040589,21]
[343266801,1732536676155,-500.0,0.00040589,21]
[343266802,1732536676165,-514.52,0.00040589,21]
[343266803,1732536676176,-500.0,0.00040589,21]
[343266804,1732536676185,-500.0,0.00040589,21]
[343266805,1732536676195,-500.0,0.00040589,21]
[343266806,1732536676205,-500.0,0.00040589,21]
[343266807,1732536676214,-325.60321107,0.00040589,21]
[343266808,1732536676224,-500.0,0.00040589,21]
[343266809,1732536676233,-500.0,0.00040589,21]
[343266810,1732536676242,-500.0,0.00040589,21]
[343266811,1732536676252,-7241.01,0.00040589,21]
[343266812,1732536676261,-1484.3,0.00040589,21]
[343266813,1732536676271,-500.0,0.00040589,21]
[343266814,1732536676281,-656.71,0.00040589,21]
[343266815,1732536676290,-1219.29,0.00040589,21]
[343266816,1732536676299,-500.0,0.00040589,21]
[343266817,1732536676309,-1044.42,0.00040589,21]
[343266818,1732536676318,-5313.62,0.00040589,21]
[343266819,1732536676328,-247.87626698,0.00040589,21]
[343266820,1732536676338,-635.51,0.00040589,21]
[343266821,1732536676348,-1329.57,0.00040589,21]
[343266822,1732536676357,-500.0,0.00040589,21]
[343266823,1732536676368,-500.0,0.00040589,21]
[343266824,1732536676377,-3316.78,0.00040589,21]
[343266825,1732536676387,-500.0,0.00040589,21]
[343266826,1732536676397,-500.0,0.00040589,21]
[343266827,1732536676572,-182.9,0.00040589,21]
[343266828,1732536676582,-500.0,0.00040589,21]
[343266829,1732536676591,-913.11,0.00040589,21]
[343266830,1732536676601,-528.36,0.00040589,21]
[343266831,1732536676611,-1044.85,0.00040589,21]
[343266832,1732536676620,-628.46,0.00040589,21]
[343266833,1732536676630,-500.0,0.00040589,21]
[343266834,1732536676639,-612.58,0.00040589,21]
[343266835,1732536676648,-1961.52,0.00040589,21]
[343266836,1732536676657,-500.0,0.00040589,21]
[343266837,1732536676667,-500.0,0.00040589,21]
[343266838,1732536676676,-1014.5,0.00040589,21]
[343266839,1732536676685,-1204.64,0.00040589,21]
[343266840,1732536676694,-500.0,0.00040589,21]
[343266841,1732536676704,-2806.06,0.00040589,21]
[343266842,1732536676713,-713.37,0.00040589,21]
[343266843,1732536676723,-2152.31,0.00040589,21]
[343266844,1732536676732,-500.0,0.00040589,21]
[343266845,1732536676740,-2862.22,0.00040589,21]
[343266846,1732536676750,-500.0,0.00040589,21]
[343266847,1732536676759,-500.0,0.00040589,21]
[343266848,1732536676768,-818.24,0.00040589,21]
[343266849,1732536676777,-594.32,0.00040589,21]
[343266850,1732536676787,-5698.56,0.00040589,21]
[343266851,1732536676797,-2231.16,0.00040589,21]
[343266852,1732536676806,-500.0,0.00040589,21]
[343266853,1732536676815,-500.0,0.00040589,21]
[343266854,1732536676825,-3033.86,0.00040589,21]
[343266855,1732536676833,-500.0,0.00040589,21]
[343266856,1732536676843,-1172.134,0.00040699,58]
[343266857,1732536676851,-173.38276711,0.00040699,58]
[343266858,1732536676861,-152.29,0.00040792,120]
[343266859,1732536676870,-500.0,0.0004082,7]
[343266860,1732536676880,-394.44499,0.0004082,6]
[343266861,1732536676889,-574.77,0.0004082,21]
[343266862,1732536676898,-574.77,0.0004082,21]
[343266863,1732536676908,-574.77,0.0004082,21]
[343266864,1732536676918,-574.77,0.0004082,21]
[343266865,1732536676927,-574.77,0.0004082,21]
[343266866,1732536676936,-500.0,0.00040821,21]
[343266867,1732536676945,-500.0,0.00040821,21]
[343266868,1732536676954,-500.0,0.00040821,21]
[343266869,1732536676964,-500.0,0.00040821,21]
[343266870,1732536676973,-500.0,0.00040821,21]
[343266871,1732536676983,-675.2,0.00040821,21]
[343266872,1732536676992,-500.0,0.00040821,21]
[343266873,1732536677001,-1143.4,0.00040821,21]
[343266874,1732536677010,-553.02,0.00040821,21]
[343266875,1732536677021,-500.0,0.00040821,21]
[343266876,1732536677031,-500.0,0.00040821,21]
[343266877,1732536677040,-660.04,0.00040821,21]
[343266878,1732536677050,-500.0,0.00040821,21]
[343266879,1732536677059,-550.37,0.00040821,21]
[343266880,1732536677069,-500.0,0.00040821,120]
[343266881,1732536677079,-500.0,0.00040821,21]
[343266882,1732536677091,-915.74,0.00040821,21]
[343266883,1732536677111,-500.0,0.00040821,21]
[343266884,1732536677120,-529.4,0.00040821,21]
[343266885,1732536677130,-500.0,0.00040821,21]
[343266886,1732536677139,-500.0,0.00040821,21]
[343266887,1732536677150,-661.32,0.00040821,21]
[343266888,1732536677160,-592.89,0.00040821,21]
[343266889,1732536677169,-596.54,0.00040821,21]
[343266890,1732536677179,-500.0,0.00040821,21]
[343266891,1732536677189,-500.0,0.00040821,21]
[343266892,1732536677199,-501.9,0.00040821,21]
[343266893,1732536677208,-282.24510383,0.00040821,21]
[343266894,1732536677218,-500.0,0.00040821,21]
[343266895,1732536677228,-500.0,0.00040821,21]
[343266896,1732536677238,-615.05,0.00040821,21]
[343266897,1732536677248,-500.0,0.00040821,21]
[343266898,1732536677258,-890.91,0.00040821,21]
[343266899,1732536677268,-2082.25,0.00040821,21]
[343266900,1732536677278,-500.0,0.00040821,21]
[343266901,1732536677287,-500.0,0.00040821,21]
[343266902,1732536677297,-500.0,0.00040821,21]
[343266903,1732536677307,-500.0,0.00040821,21]
[343266904,1732536677317,-500.0,0.00040821,21]
[343266905,1732536677326,-397.6,0.00040821,21]
[343266906,1732536677336,-500.0,0.00040821,21]
[343266907,1732536677345,-207.212113,0.00040821,14]
[343266908,1732536677354,-500.0,0.00040821,21]
[343266909,1732536677366,-500.0,0.00040821,21]
[343266910,1732536677375,-337.08,0.00040821,21]
[343266911,1732536677384,-500.0,0.00040821,21]
[343266912,1732536677393,-500.0,0.00040821,21]
[343266913,1732536677402,-500.0,0.00040821,21]
[343266914,1732536677412,-648.22,0.00040821,21]
[343266915,1732536677421,-151.0,0.00040821,14]
[343266916,1732536677430,-500.0,0.00040821,21]
[343266917,1732536677439,-500.0,0.00040821,21]
[343266918,1732536677450,-903.22,0.00040821,21]
[343266919,1732536677460,-194.68,0.00040821,21]
[343266920,1732536677469,-500.0,0.00040821,21]
[343266921,1732536677478,-500.0,0.00040821,21]
[343266922,1732536677487,-627.74,0.00040821,21]
[343266923,1732536677496,-151.0,0.00040821,14]
[343266924,1732536677505,-500.0,0.00040821,21]
[343266925,1732536677515,-374.04,0.00040821,21]
[343266926,1732536677524,-500.0,0.00040821,21]
[343266927,1732536677533,-151.0,0.00040821,14]
[343266928,1732536677543,-500.0,0.00040821,21]
[343266929,1732536677552,-1204.4,0.00040821,21]
[343266930,1732536677561,-500.0,0.00040821,21]
[343266931,1732536677570,-783.23,0.00040821,21]
[343266932,1732536677579,-151.0,0.00040821,14]
[343266933,1732536677588,-151.0,0.00040821,14]
[343266934,1732536677597,-500.0,0.00040821,21]
[343266935,1732536677606,-500.0,0.00040821,21]
[343266936,1732536677619,-500.0,0.00040821,21]
[343266937,1732536677628,-500.0,0.00040821,21]
[343266938,1732536677637,-354.16,0.00040821,21]
[343266939,1732536677646,-1024.03,0.00040821,21]
[343266940,1732536677655,-500.0,0.00040821,21]
[343266941,1732536677664,-151.0,0.00040821,14]
[343266942,1732536677673,-500.0,0.00040821,21]
[343266943,1732536677683,-500.0,0.00040821,21]
[343266944,1732536677692,-500.0,0.00040821,21]
[343266945,1732536677701,-500.0,0.00040821,21]
[343266946,1732536677710,-500.0,0.00040821,21]
[343266947,1732536677719,-500.0,0.00040821,21]
[343266948,1732536677728,-500.0,0.00040821,21]
[343266949,1732536677737,-2874.42,0.00040821,21]
[343266950,1732536677746,-634.92,0.00040821,21]
[343266951,1732536677756,-500.0,0.00040821,21]
[343266952,1732536677765,-775.26,0.00040821,21]
[343266953,1732536677774,-500.0,0.00040821,21]
[343266954,1732536677784,-552.41,0.00040821,21]
[343266955,1732536677793,-500.0,0.00040821,7]
[343266956,1732536677802,-556.19055001,0.00040821,21]
[343266957,1732536677811,-500.0,0.00040821,21]
[343266958,1732536677819,-3082.64,0.00040821,21]
[343266959,1732536677829,-500.0,0.00040821,21]
[343266960,1732536677839,-500.0,0.00040821,21]
[343266961,1732536677849,-500.0,0.00040821,21]
[343266962,1732536677858,-689.26,0.00040821,21]
[343266963,1732536677870,-739.61,0.00040821,21]
[343266964,1732536677880,-500.0,0.00040821,21]
[343266965,1732536677889,-3431.21,0.00040821,21]
[343266966,1732536677899,-500.0,0.00040821,21]
[343266967,1732536677908,-535.48,0.00040821,21]
[343266968,1732536677918,-2326.47,0.00040821,21]
[343266969,1732536677927,-817.33,0.00040821,21]
[343266970,1732536677936,-939.05,0.00040821,21]
[343266971,1732536677945,-8053.63,0.00040821,21]
[343266972,1732536677955,-576.02,0.00040821,21]
[343266973,1732536677964,-8604.27,0.00040821,21]
[343266974,1732536677973,-659.22,0.00040821,21]
[343266975,1732536677982,-500.0,0.00040821,21]
[343266976,1732536677992,-674.77,0.00040821,2]
[343266977,1732536678001,-500.0,0.00040821,21]
[343266978,1732536678011,-897.77,0.00040821,21]
[343266979,1732536678020,-500.0,0.00040821,21]
[343266980,1732536678030,-500.0,0.00040821,21]
[343266981,1732536678040,-500.0,0.00040821,21]
[343266982,1732536678050,-5549.98,0.00040821,21]
[343266983,1732536678059,-500.0,0.00040821,21]
[343266984,1732536678069,-500.0,0.00040821,21]
[343266985,1732536678079,-747.44,0.00040821,21]
[343266986,1732536678090,-1247.78,0.00040821,21]
[343266987,1732536678101,-726.59,0.00040821,21]
[343266988,1732536678115,-1129.77,0.00040821,21]
[343266989,1732536678125,-963.68,0.00040821,21]
[343266990,1732536678137,-163.68774196,0.00040821,21]
[343266991,1732536678147,-3123.05,0.00040821,21]
[343266992,1732536678157,-500.0,0.00040821,21]
[343266993,1732536678166,-307.39810303,0.00040821,21]
[343266994,1732536678179,-500.0,0.00040821,21]
[343266995,1732536678189,-500.0,0.00040821,21]
[343266996,1732536678199,-547.96,0.00040821,21]
[343266997,1732536678209,-727.18,0.00040821,21]
[343266998,1732536678218,-685.58,0.00040821,21]
[343266999,1732536678229,-8008.7,0.00040821,21]
[343267000,1732536678239,-500.0,0.00040821,21]
[343267001,1732536678250,-500.0,0.00040821,21]
[343267002,1732536678259,-913.31,0.00040821,21]
[343267003,1732536678269,-500.0,0.00040821,21]
[343267004,1732536678278,-1103.1,0.00040821,21]
[343267005,1732536678288,-1042.25,0.00040821,21]
[343267006,1732536678298,-362.94,0.00040821,21]
[343267007,1732536678307,-187.54,0.00040821,21]
[343267008,1732536678316,-525.44,0.00040821,21]
[343267009,1732536678326,-500.0,0.00040821,21]
[343267010,1732536678335,-714.29,0.00040821,21]
[343267011,1732536678345,-1098.83,0.00040821,21]
[343267012,1732536678354,-599.99,0.00040821,21]
[343267013,1732536678366,-500.0,0.00040821,21]
[343267014,1732536678375,-500.0,0.00040821,21]
[343267015,1732536678387,-536.64,0.00040821,21]
[343267016,1732536678397,-500.0,0.00040821,21]
[343267017,1732536678407,-3141.32,0.00040821,21]
[343267018,1732536678416,-500.0,0.00040821,21]
[343267019,1732536678426,-1749.61,0.00040821,21]
[343267020,1732536678435,-520.31,0.00040821,21]
[343267021,1732536678445,-3086.47,0.00040821,21]
[343267022,1732536678454,-999.78,0.00040821,21]
[343267023,1732536678463,-702.08,0.00040821,21]
[343267024,1732536678472,-500.0,0.00040821,21]
[343267025,1732536678482,-516.76,0.00040821,21]
[343267026,1732536678496,-599.84,0.00040821,21]
[343267027,1732536678505,-411.88,0.00040821,21]
[343267028,1732536678514,-500.0,0.00040821,21]
[343267029,1732536678523,-843.37,0.00040821,21]
[343267030,1732536678532,-897.11,0.00040821,21]
[343267031,1732536678542,-500.0,0.00040821,21]
[343267032,1732536678551,-1516.6,0.00040821,21]
[343267033,1732536678560,-4321.07,0.00040821,21]
[343267034,1732536678570,-1501.72,0.00040821,21]
[343267035,1732536678579,-500.0,0.00040821,21]
[343267036,1732536678588,-431.66,0.00040821,21]
[343267037,1732536678598,-21441.79,0.00040821,21]
[343267038,1732536678607,-3276.7,0.00040821,21]
[343267039,1732536678619,-500.0,0.00040821,21]
[343267040,1732536678629,-2182.69,0.00040821,21]
[343267041,1732536678640,-500.0,0.00040821,21]
[343267042,1732536678650,-500.0,0.00040821,21]
[343267043,1732536678660,-2334.22,0.00040821,21]
[343267044,1732536678670,-1941.42,0.00040821,21]
[343267045,1732536678681,-500.0,0.00040821,21]
[343267046,1732536678691,-1034.74,0.00040821,21]
[343267047,1732536678701,-548.14,0.00040821,21]
[343267048,1732536678711,-500.0,0.00040821,21]
[343267049,1732536678721,-1055.46,0.00040821,21]
[343267050,1732536678731,-437.351,0.0004084,120]
[343267051,1732536678742,-574.77,0.00040862,21]
[343267052,1732536678752,-500.0,0.00040863,21]
[343267053,1732536678762,-500.0,0.00040863,21]
[343267054,1732536678771,-500.0,0.00040863,21]
[343267055,1732536678781,-500.0,0.00040863,21]
[343267056,1732536678796,-235.48,0.00040863,21]
[343267057,1732536678806,-771.52,0.00040863,21]
[343267058,1732536678815,-500.0,0.00040863,21]
[343267059,1732536678825,-500.0,0.00040863,21]
[343267060,1732536678834,-500.0,0.00040863,21]
[343267061,1732536678844,-500.0,0.00040863,21]
[343267062,1732536678854,-500.0,0.00040863,21]
[343267063,1732536678864,-205.9,0.00040863,21]
[343267064,1732536678874,-500.0,0.00040863,21]
[343267065,1732536678884,-341.73,0.00040863,21]
[343267066,1732536678893,-500.0,0.00040863,21]
[343267067,1732536678903,-500.0,0.00040863,21]
[343267068,1732536678913,-500.0,0.00040863,21]
[343267069,1732536678922,-500.0,0.00040863,21]
[343267070,1732536678932,-658.45,0.00040863,21]
[343267071,1732536678942,-1976.25,0.00040863,21]
[343267072,1732536678952,-500.0,0.00040863,21]
[343267073,1732536678962,-500.0,0.00040863,21]
[343267074,1732536678972,-500.0,0.00040863,21]
[343267075,1732536678982,-500.0,0.00040863,21]
[343267076,1732536678991,-500.0,0.00040863,21]
[343267077,1732536679001,-876.13,0.00040863,21]
[343267078,1732536679011,-500.0,0.00040863,21]
[343267079,1732536679021,-514.52,0.00040863,21]
[343267080,1732536679031,-500.0,0.00040863,21]
[343267081,1732536679040,-500.0,0.00040863,21]
[343267082,1732536679050,-500.0,0.00040863,21]
[343267083,1732536679059,-500.0,0.00040863,21]
[343267084,1732536679068,-500.0,0.00040863,21]
[343267085,1732536679077,-500.0,0.00040863,21]
[343267086,1732536679087,-7241.01,0.00040863,21]
[343267087,1732536679096,-1484.3,0.00040863,21]
[343267088,1732536679109,-500.0,0.00040863,21]
[343267089,1732536679121,-656.71,0.00040863,21]
[343267090,1732536679131,-1219.29,0.00040863,21]
[343267091,1732536679141,-500.0,0.00040863,21]
[343267092,1732536679151,-1044.42,0.00040863,21]
[343267093,1732536679160,-5313.62,0.00040863,21]
[343267094,1732536679170,-635.51,0.00040863,21]
[343267095,1732536679181,-1329.57,0.00040863,21]
[343267096,1732536679190,-500.0,0.00040863,21]
[343267097,1732536679200,-500.0,0.00040863,21]
[343267098,1732536679209,-3316.78,0.00040863,21]
[343267099,1732536679220,-500.0,0.00040863,21]
[343267100,1732536679229,-500.0,0.00040863,21]
[343267101,1732536679240,-500.0,0.00040863,21]
[343267102,1732536679249,-913.11,0.00040863,21]
[343267103,1732536679259,-528.36,0.00040863,21]
[343267104,1732536679268,-1044.85,0.00040863,21]
[343267105,1732536679277,-500.0,0.00040863,21]
[343267106,1732536679286,-1961.52,0.00040863,21]
[343267107,1732536679296,-500.0,0.00040863,21]
[343267108,1732536679306,-500.0,0.00040863,21]
[343267109,1732536679315,-1014.5,0.00040863,21]
[343267110,1732536679324,-151.0,0.00040863,14]
[343267111,1732536679334,-1204.64,0.00040863,21]
[343267112,1732536679344,-500.0,0.00040863,21]
[343267113,1732536679353,-2500.0,0.00040863,14]
[343267114,1732536679363,-231.435469,0.00040863,14]
[343267115,1732536679373,-2806.06,0.00040863,21]
[343267116,1732536679382,-231.435469,0.00040863,14]
[343267117,1732536679392,-2500.0,0.00040863,14]
[343267118,1732536679401,-713.37,0.00040863,21]
[343267119,1732536679410,-151.0,0.00040863,14]
[343267120,1732536679419,-2152.31,0.00040863,21]
[343267121,1732536679429,-500.0,0.00040863,21]
[343267122,1732536679438,-2862.22,0.00040863,21]
[343267123,1732536679447,-500.0,0.00040863,21]
[343267124,1732536679457,-640.97,0.00040863,21]
[343267125,1732536679466,-818.24,0.00040863,21]
[343267126,1732536679476,-594.32,0.00040863,21]
[343267127,1732536679485,-5698.56,0.00040863,21]
[343267128,1732536679495,-2231.16,0.00040863,21]
[343267129,1732536679504,-500.0,0.00040863,21]
[343267130,1732536679513,-454.13,0.00040863,21]
[343267131,1732536679523,-3033.86,0.00040863,21]
[343267132,1732536679532,-500.0,0.00040863,21]
[343267133,1732536679542,-119298.0,0.000409,120]
[343267134,1732536679552,-151.0,0.000409,14]
[343267135,1732536679561,-151.0,0.000409,14]
[343267136,1732536679571,-151.0,0.000409,14]
[343267137,1732536679580,-151.0,0.000409,14]
[343267138,1732536679589,-151.0,0.00040904,120]
[343267139,1732536679598,-500.0,0.00040957,7]
[343267140,1732536679608,-1152.7405211,0.0004096,30]
[343267141,1732536679620,-682.24180917,0.00041,120]
[343267142,1732536679630,-500.0,0.00041,2]
[343267143,1732536679639,-204.0,0.0004108,30]
[343267144,1732536679648,-204.0,0.0004108,2]
[343267145,1732536679657,-500.0,0.00041094,7]
[343267146,1732536679667,-574.77,0.00041094,21]
[343267147,1732536679676,-500.0,0.00041095,21]
[343267148,1732536679685,-500.0,0.00041095,21]
[343267149,1732536679695,-298.06,0.00041095,21]
[343267150,1732536679704,-500.0,0.00041095,21]
[343267151,1732536679713,-225.5,0.00041095,21]
[343267152,1732536679722,-2609.3,0.00041095,60]
[343267153,1732536679732,-2609.3,0.00041095,60]
[343267154,1732536679741,-2609.3,0.00041095,60]
[343267155,1732536679751,-2609.3,0.00041095,60]
[343267156,1732536679760,-2609.3,0.00041095,60]
[343267157,1732536679769,-2609.3,0.00041095,60]
[343267158,1732536679778,-2609.3,0.00041095,60]
[343267159,1732536679788,-2609.3,0.00041095,60]
[343267160,1732536679798,-2609.3,0.00041095,60]
[343267161,1732536679967,-2609.3,0.00041095,60]
[343267162,1732536679976,-2609.3,0.00041095,60]
[343267163,1732536679985,-675.2,0.00041095,21]
[343267164,1732536679995,-500.0,0.00041095,21]
[343267165,1732536680004,-1143.4,0.00041095,21]
[343267166,1732536680013,-553.02,0.00041095,21]
[343267167,1732536680023,-500.0,0.00041095,21]
[343267168,1732536680033,-500.0,0.00041095,21]
[343267169,1732536680042,-660.04,0.00041095,21]
[343267170,1732536680052,-452.50573848,0.00041095,21]
[343267171,1732536680063,-550.37,0.00041095,21]